bitfinex-derivatives/quotes_BNBF0:USTF0_20241225
["timestamp","ask_amount","ask_price","bid_price","bid_amount"]
[1735138126997,0.25920085,710.06,708.64,0.28223075]
[1735138133597,0.28166237,710.07,708.64,0.28223075]
[1735138133802,0.25927504,710.06,708.64,0.28223075]
[1735138135704,0.28166237,710.07,708.64,0.28223075]
[1735138135904,0.25928179,710.06,708.64,0.28223075]
[1735138138405,0.25927649,710.05,708.64,0.28223075]
[1735138138704,0.25927649,710.04,708.64,0.28223075]
[1735138138902,0.25927649,710.03,708.64,0.28223075]
[1735138139101,0.25927649,710.02,708.64,0.28223075]
[1735138139300,0.25927649,710.01,708.64,0.28223075]
[1735138139507,0.54096663,710.0,708.64,0.28223075]
[1735138139706,0.25927649,709.99,708.64,0.28223075]
[1735138140902,0.25927164,709.98,708.64,0.28223075]
[1735138141100,0.54097368,709.97,708.64,0.28223075]
[1735138141305,0.25927164,709.96,708.64,0.28223075]
[1735138141703,0.25927522,709.95,708.64,0.28223075]
[1735138141905,0.25927522,709.94,708.64,0.28223075]
[1735138142109,0.54099313,709.93,708.64,0.28223075]
[1735138142309,0.25927522,709.92,708.64,0.28223075]
[1735138143107,0.28171791,709.93,708.64,0.28223075]
[1735138143306,0.25927832,709.92,708.64,0.28223075]
[1735138145810,0.28171791,709.93,708.64,0.28223075]
[1735138146010,0.25928604,709.92,708.64,0.28223075]
[1735138147212,0.28171791,709.93,708.64,0.28223075]
[1735138150608,0.25931523,709.92,708.64,0.28223075]
[1735138151317,0.28172585,709.91,708.64,0.28223075]
[1735138151814,0.25932102,709.9,708.64,0.28223075]
[1735138152917,0.28173378,709.89,708.64,0.28223075]
[1735138153114,0.25932102,709.88,708.64,0.28223075]
[1735138153312,0.28174172,709.87,708.64,0.28223075]
[1735138153511,0.25932102,709.86,708.64,0.28223075]
[1735138153721,0.28174966,709.85,708.64,0.28223075]
[1735138153917,0.25932102,709.84,708.64,0.28223075]
[1735138154316,0.2817576,709.83,708.64,0.28223075]
[1735138154511,0.25932102,709.82,708.64,0.28223075]
[1735138154711,0.2817576,709.83,708.64,0.28223075]
[1735138158013,0.25931095,709.82,708.64,0.28223075]
[1735138158214,0.28176554,709.81,708.64,0.28223075]
[1735138158419,0.25931857,709.8,708.64,0.28223075]
[1735138158627,0.28177348,709.79,708.64,0.28223075]
[1735138158918,0.25932882,709.78,708.64,0.28223075]
[1735138159118,0.28177348,709.79,708.64,0.28223075]
[1735138161217,0.25933424,709.78,708.64,0.28223075]
[1735138161819,0.28177348,709.79,708.64,0.28223075]
[1735138162218,0.25932512,709.78,708.64,0.28223075]
[1735138163013,0.28177348,709.79,708.64,0.28223075]
[1735138164218,0.25932105,709.78,708.64,0.28223075]
[1735138165316,0.25932653,709.77,708.64,0.28223075]
[1735138165523,0.25932653,709.76,708.64,0.28223075]
[1735138165717,0.25932653,709.78,708.64,0.28223075]
[1735138165917,0.25932653,709.77,708.64,0.28223075]
[1735138166119,0.25932603,709.76,708.64,0.28223075]
[1735138166419,0.25932603,709.75,708.64,0.28223075]
[1735138166624,0.25932603,709.74,708.64,0.28223075]
[1735138166828,0.25932603,709.73,708.64,0.28223075]
[1735138167025,0.28177348,709.79,708.64,0.28223075]
[1735138167026,0.25932603,709.72,708.64,0.28223075]
[1735138167324,0.25932603,709.71,708.64,0.28223075]
[1735138167526,0.25932603,709.7,708.64,0.28223075]
[1735138167725,0.25932603,709.69,708.64,0.28223075]
[1735138167926,0.25932603,709.68,708.64,0.28223075]
[1735138168122,0.28177348,709.79,708.64,0.28223075]
[1735138168327,0.25931233,709.78,708.64,0.28223075]
[1735138170929,0.2593179,709.77,708.64,0.28223075]
[1735138171129,0.2593179,709.76,708.64,0.28223075]
[1735138171329,0.28177348,709.79,708.64,0.28223075]
[1735138171330,0.25932464,709.75,708.64,0.28223075]
[1735138171529,0.25932464,709.74,708.64,0.28223075]
[1735138171733,0.25932464,709.73,708.64,0.28223075]
[1735138172029,0.25932464,709.72,708.64,0.28223075]
[1735138172227,0.25932464,709.71,708.64,0.28223075]
[1735138172422,0.28177348,709.79,708.64,0.28223075]
[1735138172622,0.25931738,709.78,708.64,0.28223075]
[1735138173634,0.28178142,709.77,708.64,0.28223075]
[1735138173832,0.25932621,709.76,708.64,0.28223075]
[1735138174033,0.28178936,709.75,708.64,0.28223075]
[1735138174229,0.25932621,709.74,708.64,0.28223075]
[1735138174439,0.2817973,709.73,708.13,1.03991844]
[1735138174633,0.25936233,709.72,708.13,1.03991844]
[1735138174834,0.25936233,709.72,708.14,0.28243002]
[1735138178338,0.28180524,709.71,708.14,0.28243002]
[1735138178533,0.25936233,709.7,708.14,0.28243002]
[1735138179437,0.25936375,709.69,708.14,0.28243002]
[1735138179633,0.25936375,709.68,708.14,0.28243002]
[1735138179837,0.25936375,709.67,708.14,0.28243002]
[1735138180136,0.25936375,709.66,708.14,0.28243002]
[1735138180337,0.54119282,709.65,708.14,0.28243002]
[1735138180537,0.25936375,709.64,708.14,0.28243002]
[1735138182037,0.25936847,709.63,708.14,0.28243002]
[1735138182229,0.28182907,709.65,708.14,0.28243002]
[1735138182230,0.25936847,709.62,708.14,0.28243002]
[1735138182434,0.25936847,709.61,708.14,0.28243002]
[1735138182635,0.25936847,709.6,708.14,0.28243002]
[1735138182836,0.25936847,709.59,708.14,0.28243002]
[1735138183137,0.25936847,709.58,708.14,0.28243002]
[1735138183334,0.25936847,709.64,708.14,0.28243002]
[1735138183637,0.25936847,709.63,708.14,0.28243002]
[1735138183837,0.25936847,709.62,708.14,0.28243002]
[1735138184038,0.25936847,709.61,708.14,0.28243002]
[1735138184336,0.25936847,709.6,708.14,0.28243002]
[1735138184537,0.25936847,709.59,708.14,0.28243002]
[1735138184738,0.25936847,709.58,708.14,0.28243002]
[1735138184933,0.25936847,709.57,708.14,0.28243002]
[1735138185139,0.28182907,709.65,708.14,0.28243002]
[1735138185333,0.25938603,709.64,708.14,0.28243002]
[1735138190138,0.28182907,709.65,708.14,0.28243002]
[1735138190341,0.25942168,709.64,708.14,0.28243002]
[1735138192946,0.28182907,709.65,708.14,0.28243002]
[1735138193146,0.25943723,709.64,708.14,0.28243002]
[1735138198544,0.25941099,709.63,708.14,0.28243002]
[1735138198745,0.25941099,709.62,708.14,0.28243002]
[1735138199045,0.25941099,709.61,708.14,0.28243002]
[1735138199246,0.28182907,709.65,708.14,0.28243002]
[1735138199448,0.25941978,709.64,708.14,0.28243002]
[1735138200946,0.25944309,709.63,708.14,0.28243002]
[1735138201145,0.25944309,709.62,708.14,0.28243002]
[1735138201351,0.25944309,709.61,708.14,0.28243002]
[1735138201551,0.25944309,709.6,708.14,0.28243002]
[1735138201850,0.25944309,709.59,708.14,0.28243002]
[1735138202148,0.25944309,709.58,708.14,0.28243002]
[1735138202351,0.25944309,709.57,708.14,0.28243002]
[1735138202554,0.28182907,709.65,708.14,0.28243002]
[1735138202555,0.25944309,709.56,708.14,0.28243002]
[1735138202742,0.25944309,709.55,708.14,0.28243002]
[1735138202948,0.25944309,709.54,708.14,0.28243002]
[1735138203147,0.28182907,709.65,708.14,0.28243002]
[1735138203350,0.25940687,709.64,708.14,0.28243002]
[1735138206053,0.25943652,709.63,708.14,0.28243002]
[1735138206250,0.25943652,709.62,708.14,0.28243002]
[1735138206456,0.25943652,709.61,708.14,0.28243002]
[1735138206656,0.25943652,709.6,708.14,0.28243002]
[1735138206851,0.25943151,709.64,708.14,0.28243002]
[1735138207051,0.25943151,709.63,708.14,0.28243002]
[1735138207353,0.25943151,709.62,708.14,0.28243002]
[1735138207557,0.25943151,709.61,708.14,0.28243002]
[1735138207759,0.25943151,709.6,708.14,0.28243002]
[1735138207954,0.25943151,709.59,708.14,0.28243002]
[1735138208158,0.25943151,709.58,708.14,0.28243002]
[1735138208353,0.25943151,709.57,708.14,0.28243002]
[1735138208658,0.25943151,709.56,708.14,0.28243002]
[1735138208859,0.25947864,709.55,708.14,0.28243002]
[1735138209054,0.25947864,709.54,708.14,0.28243002]
[1735138209252,0.28182907,709.65,708.14,0.28243002]
[1735138209253,0.25947864,709.53,708.14,0.28243002]
[1735138209451,0.25947864,709.52,708.14,0.28243002]
[1735138209653,0.25947864,709.51,708.14,0.28243002]
[1735138209858,0.25947864,709.5,708.14,0.28243002]
[1735138210058,0.25947864,709.49,708.14,0.28243002]
[1735138210252,0.25947864,709.48,708.14,0.28243002]
[1735138210453,0.25947864,709.47,708.14,0.28243002]
[1735138210761,0.25947864,709.46,708.14,0.28243002]
[1735138210959,0.25947864,709.45,708.14,0.28243002]
[1735138211154,0.25947864,709.44,708.14,0.28243002]
[1735138211353,0.25947864,709.43,708.14,0.28243002]
[1735138211660,0.25948383,709.42,708.14,0.28243002]
[1735138211852,0.25948383,709.41,708.14,0.28243002]
[1735138212057,0.25948383,709.4,708.14,0.28243002]
[1735138212259,0.25948383,709.39,708.14,0.28243002]
[1735138212560,0.25948383,709.38,708.14,0.28243002]
[1735138212759,0.28182907,709.65,708.14,0.28243002]
[1735138212760,0.25948383,709.37,708.14,0.28243002]
[1735138212960,0.25948383,709.36,708.14,0.28243002]
[1735138213152,0.25948383,709.35,708.14,0.28243002]
[1735138213358,1.04991195,709.48,708.14,0.28243002]
[1735138213359,0.25948383,709.34,708.14,0.28243002]
[1735138213553,1.04991195,709.48,708.14,0.28243002]
[1735138213554,0.25948383,709.47,708.14,0.28243002]
[1735138213759,0.25948383,709.46,708.14,0.28243002]
[1735138214061,0.63260346,709.63,708.14,0.28243002]
[1735138214062,0.25948383,709.45,708.14,0.28243002]
[1735138214259,0.25947268,709.44,708.14,0.28243002]
[1735138214454,0.25947268,709.46,708.14,0.28243002]
[1735138214762,0.25947268,709.45,708.14,0.28243002]
[1735138214958,0.25947268,709.44,708.14,0.28243002]
[1735138215157,0.25947268,709.43,708.14,0.28243002]
[1735138215358,0.25947268,709.42,708.14,0.28243002]
[1735138215660,0.25947268,709.41,708.14,0.28243002]
[1735138215958,0.25947268,709.4,708.14,0.28243002]
[1735138216153,0.25947268,709.39,708.14,0.28243002]
[1735138216355,0.25946381,709.38,708.14,0.28243002]
[1735138216659,1.04991195,709.5,708.14,0.28243002]
[1735138216660,0.25946381,709.37,708.14,0.28243002]
[1735138216855,0.25946381,709.36,708.14,0.28243002]
[1735138217062,0.25945796,709.35,708.14,0.28243002]
[1735138217359,0.25945796,709.34,708.14,0.28243002]
[1735138217552,0.25945796,709.33,708.14,0.28243002]
[1735138217756,0.25945796,709.32,708.14,0.28243002]
[1735138217953,0.25945796,709.31,708.14,0.28243002]
[1735138218154,0.25945796,709.3,708.14,0.28243002]
[1735138218358,0.25945796,709.29,708.14,0.28243002]
[1735138218555,0.25945796,709.28,708.14,0.28243002]
[1735138218756,0.25945796,709.27,708.14,0.28243002]
[1735138218959,0.25945796,709.26,708.14,0.28243002]
[1735138219154,0.25945796,709.25,708.14,0.28243002]
[1735138219357,0.25945796,709.24,708.14,0.28243002]
[1735138219561,0.25945796,709.23,708.14,0.28243002]
[1735138219857,1.04991195,709.52,708.14,0.28243002]
[1735138220058,0.25941721,709.51,708.14,0.28243002]
[1735138220459,0.25941721,709.5,708.14,0.28243002]
[1735138220660,0.25941721,709.49,708.14,0.28243002]
[1735138220858,0.25941721,709.48,708.14,0.28243002]
[1735138221060,0.25941721,709.47,708.14,0.28243002]
[1735138221262,0.25941721,709.46,708.14,0.28243002]
[1735138221459,0.25941721,709.45,708.14,0.28243002]
[1735138221760,0.28182907,709.65,708.14,0.28243002]
[1735138221957,0.25939393,709.64,708.14,0.28243002]
[1735138222158,0.25939471,709.63,708.14,0.28243002]
[1735138222355,0.28182907,709.65,708.14,0.28243002]
[1735138222561,0.25940243,709.64,708.14,0.28243002]
[1735138223363,0.25938968,709.63,708.14,0.28243002]
[1735138223558,0.25938968,709.62,708.14,0.28243002]
[1735138223762,0.25938968,709.61,708.14,0.28243002]
[1735138223963,0.25938968,709.6,708.14,0.28243002]
[1735138224163,0.25938968,709.59,708.14,0.28243002]
[1735138224466,0.25938968,709.58,708.14,0.28243002]
[1735138224661,0.28182907,709.65,708.14,0.28243002]
[1735138224662,0.25938968,709.57,708.14,0.28243002]
[1735138224864,0.25938968,709.56,708.14,0.28243002]
[1735138225063,0.25938968,709.55,708.14,0.28243002]
[1735138225363,0.25940318,709.54,708.14,0.28243002]
[1735138225560,0.25940318,709.53,708.14,0.28243002]
[1735138225757,0.25940318,709.52,708.14,0.28243002]
[1735138225963,0.25940318,709.51,708.14,0.28243002]
[1735138226164,0.25940318,709.5,708.14,0.28243002]
[1735138226465,0.25940318,709.49,708.14,0.28243002]
[1735138226661,0.25940318,709.48,708.14,0.28243002]
[1735138226859,0.25940318,709.47,708.14,0.28243002]
[1735138227060,0.25940318,709.46,708.14,0.28243002]
[1735138227264,0.25940318,709.45,708.14,0.28243002]
[1735138227466,0.25940318,709.44,708.14,0.28243002]
[1735138227664,0.25940318,709.43,708.14,0.28243002]
[1735138227967,0.25940318,709.42,708.14,0.28243002]
[1735138228168,0.25940318,709.41,708.14,0.28243002]
[1735138228361,0.25940318,709.4,708.14,0.28243002]
[1735138228567,0.25940318,709.39,708.14,0.28243002]
[1735138228763,0.25940318,709.38,708.14,0.28243002]
[1735138229064,0.25940318,709.37,708.14,0.28243002]
[1735138229269,0.28182907,709.65,708.14,0.28243002]
[1735138229470,0.25939287,709.64,708.14,0.28243002]
[1735138231566,0.28182907,709.65,708.14,0.28243002]
[1735138231769,0.25936525,709.64,708.14,0.28243002]
[1735138233571,0.28182907,709.65,708.14,0.28243002]
[1735138233772,0.25936737,709.64,708.14,0.28243002]
[1735138236373,0.25935636,709.63,708.14,0.28243002]
[1735138236574,0.28182907,709.65,708.14,0.28243002]
[1735138237975,0.25935599,709.64,708.14,0.28243002]
[1735138238370,0.28182907,709.65,708.14,0.28243002]
[1735138238573,0.25936153,709.63,708.14,0.28243002]
[1735138238773,0.25936153,709.62,708.14,0.28243002]
[1735138239071,0.25936153,709.61,708.14,0.28243002]
[1735138239268,0.25936153,709.6,708.14,0.28243002]
[1735138239467,0.25936153,709.59,708.14,0.28243002]
[1735138239673,0.25936153,709.58,708.14,0.28243002]
[1735138239873,0.25936153,709.57,708.14,0.28243002]
[1735138240068,0.25936153,709.56,708.14,0.28243002]
[1735138240274,0.28182907,709.65,708.14,0.28243002]
[1735138240474,0.25933891,709.64,708.14,0.28243002]
[1735138245773,0.28182907,709.65,708.14,0.28243002]
[1735138245970,0.259348,709.64,708.14,0.28243002]
[1735138246882,0.25934816,709.63,708.14,0.28243002]
[1735138247178,0.25934816,709.62,708.14,0.28243002]
[1735138247377,0.25934816,709.61,708.14,0.28243002]
[1735138247578,0.25934816,709.6,708.14,0.28243002]
[1735138247777,0.25934816,709.59,708.14,0.28243002]
[1735138247973,0.25934816,709.58,708.14,0.28243002]
[1735138248175,0.25934816,709.57,708.14,0.28243002]
[1735138248378,0.25934816,709.56,708.14,0.28243002]
[1735138248677,0.28182907,709.65,708.14,0.28243002]
[1735138248877,0.25934179,709.64,708.14,0.28243002]
[1735138250374,0.28182907,709.65,708.14,0.28243002]
[1735138260382,0.25933788,709.64,708.14,0.28243002]
[1735138261887,0.28182907,709.65,708.18,1.03991844]
[1735138262479,0.28182907,709.65,708.2,0.28240609]
[1735138262880,0.28182907,709.65,708.21,1.03991844]
[1735138263788,0.28182907,709.65,708.23,0.28239413]
[1735138269185,0.25931723,709.64,708.23,0.28239413]
[1735138269587,0.28182907,709.65,708.23,0.28239413]
[1735138269790,0.25930223,709.64,708.23,0.28239413]
[1735138269991,0.25930471,709.63,708.32,1.03991844]
[1735138270188,0.25930471,709.62,708.32,1.03991844]
[1735138270400,0.25930471,709.61,708.32,1.03991844]
[1735138270589,0.25930471,709.6,708.32,1.03991844]
[1735138270894,0.28182907,709.65,708.32,1.32227669]
[1735138271094,0.25930049,709.64,708.32,1.32227669]
[1735138271392,0.28182907,709.65,708.32,1.32227669]
[1735138271792,0.28182907,709.65,708.32,0.28235825]
[1735138274895,0.28182907,709.65,708.32,1.32227669]
[1735138275894,0.28182907,709.65,708.32,0.28235825]
[1735138277198,0.28182907,709.65,708.33,1.03991844]
[1735138277796,0.28182907,709.65,708.34,0.28235028]
[1735138279893,0.28182907,709.65,708.39,1.03991844]
[1735138280699,0.28182907,709.65,708.34,0.28235028]
[1735138293212,1.04991195,710.35,708.34,0.28235028]
[1735138293515,0.28155927,710.33,708.34,0.28235028]
[1735138293708,0.25921363,710.32,708.34,0.28235028]
[1735138293905,0.25921363,710.32,708.41,1.03991844]
[1735138294917,0.25921363,710.32,708.45,1.03991844]
[1735138295814,0.25921363,710.32,708.42,1.03991844]
[1735138297915,0.28155927,710.33,708.42,1.03991844]
[1735138298117,0.25913335,710.32,708.5,1.03991844]
[1735138299117,0.25913335,710.32,708.48,1.03991844]
[1735138300517,0.28155927,710.33,708.48,1.03991844]
[1735138300717,0.28155927,710.33,708.37,1.03991844]
[1735138300718,0.25915612,710.32,708.4,1.03991844]
[1735138301511,0.25915612,710.32,708.38,1.03991844]
[1735138302614,0.25915612,710.32,708.37,1.03991844]
[1735138303419,0.25915612,710.32,708.47,1.03991844]
[1735138304418,0.25915612,710.32,708.34,0.28235028]
[1735138305515,0.25915612,710.31,708.34,0.28235028]
[1735138305821,0.25915612,710.3,708.34,0.28235028]
[1735138306018,0.25915612,710.29,708.34,0.28235028]
[1735138306220,0.25922269,710.28,708.34,0.28235028]
[1735138306519,0.25922269,710.27,708.34,0.28235028]
[1735138306715,0.25922269,710.26,708.34,0.28235028]
[1735138306917,0.25922269,710.25,708.34,0.28235028]
[1735138307117,0.25922269,710.24,708.34,0.28235028]
[1735138307313,0.25922269,710.23,708.34,0.28235028]
[1735138307517,0.25922269,710.22,708.34,0.28235028]
[1735138307721,0.25922269,710.21,708.34,0.28235028]
[1735138307918,0.25922269,710.2,708.34,0.28235028]
[1735138308114,0.25922269,710.19,708.34,0.28235028]
[1735138308313,0.25922269,710.18,708.34,0.28235028]
[1735138308514,0.25922269,710.17,708.34,0.28235028]
[1735138308719,0.25922269,710.16,708.34,0.28235028]
[1735138308919,0.25924395,710.32,708.34,0.28235028]
[1735138311624,0.25923833,710.31,708.34,0.28235028]
[1735138311824,0.25923833,710.3,708.34,0.28235028]
[1735138312020,0.25923833,710.29,708.34,0.28235028]
[1735138312319,0.25924123,710.28,708.34,0.28235028]
[1735138312525,0.25924123,710.27,708.34,0.28235028]
[1735138312732,0.28159098,710.25,708.34,0.28235028]
[1735138312925,0.25924123,710.24,708.34,0.28235028]
[1735138313120,0.28160288,710.22,708.34,0.28235028]
[1735138313321,0.25924123,710.21,708.34,0.28235028]
[1735138313521,0.28161477,710.19,708.34,0.28235028]
[1735138313724,0.25924123,710.18,708.34,0.28235028]
[1735138313918,0.28162667,710.16,708.34,0.28235028]
[1735138314117,0.25924123,710.15,708.34,0.28235028]
[1735138314626,0.28163857,710.13,708.34,0.28235028]
[1735138314819,0.25924123,710.12,708.34,0.28235028]
[1735138317126,0.28163857,710.13,708.34,0.28235028]
[1735138317326,0.25923786,710.12,708.34,0.28235028]
[1735138318027,0.2816465,710.11,708.34,0.28235028]
[1735138318229,0.25923786,710.1,708.34,0.28235028]
[1735138318629,0.28165443,710.09,708.34,0.28235028]
[1735138318829,0.25923786,710.08,708.34,0.28235028]
[1735138320030,0.25923497,710.07,708.34,0.28235028]
[1735138320231,0.25923497,710.06,708.34,0.28235028]
[1735138320434,0.25923497,710.05,708.34,0.28235028]
[1735138320732,0.28165443,710.09,708.34,0.28235028]
[1735138320926,0.25922847,710.08,708.34,0.28235028]
[1735138322027,0.28165443,710.09,708.34,0.28235028]
[1735138322028,0.25922612,710.07,708.34,0.28235028]
[1735138322227,0.25922612,710.06,708.34,0.28235028]
[1735138322430,0.25922612,710.05,708.34,0.28235028]
[1735138322625,0.25922612,710.04,708.34,0.28235028]
[1735138322831,0.25922612,710.03,708.34,0.28235028]
[1735138323131,0.25922612,710.02,708.34,0.28235028]
[1735138323332,0.25922612,710.01,708.34,0.28235028]
[1735138323532,0.54091626,710.0,708.34,0.28235028]
[1735138323727,0.2816941,709.99,708.34,0.28235028]
[1735138324132,0.25924118,709.98,708.34,0.28235028]
[1735138324631,0.54094327,709.97,708.34,0.28235028]
[1735138324836,0.54094724,709.96,708.34,0.28235028]
[1735138325031,0.54094839,709.95,708.34,0.28235028]
[1735138325235,0.25923748,709.94,708.34,0.28235028]
[1735138325437,0.28170997,709.95,708.34,0.28235028]
[1735138326134,0.25922726,709.94,708.34,0.28235028]
[1735138326930,0.5409412,709.94,708.34,0.28235028]
[1735138327133,0.25922726,709.93,708.34,0.28235028]
[1735138327535,0.28171394,709.94,708.34,0.28235028]
[1735138328035,0.25922799,709.93,708.34,0.28235028]
[1735138333033,0.25924161,709.92,708.34,0.28235028]
[1735138333236,0.25924161,709.91,708.34,0.28235028]
[1735138333437,0.25924161,709.9,708.34,0.28235028]
[1735138333639,0.25924161,709.89,708.34,0.28235028]
[1735138333833,0.28173775,709.88,708.34,0.28235028]
[1735138334038,0.28173775,709.88,708.39,1.03991844]
[1735138334039,0.25930761,709.87,708.39,1.03991844]
[1735138334333,0.28174966,709.85,708.39,1.03991844]
[1735138334538,0.25930761,709.84,708.39,1.03991844]
[1735138334839,0.25930761,709.84,708.34,0.28235028]
[1735138334840,0.28176157,709.82,708.34,0.28235028]
[1735138335038,0.25930761,709.81,708.34,0.28235028]
[1735138335235,0.28177348,709.79,708.34,0.28235028]
[1735138335450,0.25930761,709.78,708.34,0.28235028]
[1735138335839,0.25935765,709.77,708.34,0.28235028]
[1735138336140,0.28178936,709.75,708.34,0.28235028]
[1735138336339,0.25935765,709.74,708.34,0.28235028]
[1735138336544,0.54115038,709.73,708.34,0.28235028]
[1735138336835,0.54115435,709.72,708.34,0.28235028]
[1735138337040,0.54115832,709.71,708.34,0.28235028]
[1735138337340,0.54116229,709.7,708.34,0.28235028]
[1735138337537,0.54116626,709.69,708.34,0.28235028]
[1735138337741,0.54117023,709.68,708.34,0.28235028]
[1735138337942,0.5411742,709.67,708.34,0.28235028]
[1735138338240,0.25935124,709.66,708.34,0.28235028]
[1735138341444,0.25935016,709.65,708.34,0.28235028]
[1735138341645,0.25935016,709.64,708.34,0.28235028]
[1735138341844,0.25935016,709.63,708.34,0.28235028]
[1735138342046,0.25935016,709.62,708.34,0.28235028]
[1735138342246,0.25935016,709.61,708.34,0.28235028]
[1735138342440,0.25935016,709.6,708.34,0.28235028]
[1735138342645,0.25935016,709.59,708.34,0.28235028]
[1735138342841,0.25935016,709.58,708.34,0.28235028]
[1735138343045,0.25935016,709.57,708.34,0.28235028]
[1735138343243,0.28182112,709.67,708.34,0.28235028]
[1735138349447,0.25926597,709.66,708.34,0.28235028]
[1735138349643,0.28182112,709.67,708.34,0.28235028]
[1735138349847,0.25926218,709.66,708.34,0.28235028]
[1735138352048,0.25926527,709.65,708.34,0.28235028]
[1735138352249,0.25926527,709.64,708.34,0.28235028]
[1735138352444,0.25926527,709.63,708.34,0.28235028]
[1735138352643,0.28182112,709.67,708.34,0.28235028]
[1735138352847,0.25930009,709.66,708.34,0.28235028]
[1735138353045,0.28182112,709.67,708.34,0.28235028]
[1735138353450,0.25931677,709.66,708.34,0.28235028]
[1735138355348,0.28182112,709.67,708.34,0.28235028]
[1735138355554,0.25933255,709.66,708.34,0.28235028]
[1735138358056,0.28182112,709.67,708.34,0.28235028]
[1735138358357,0.25931889,709.66,708.34,0.28235028]
[1735138359955,0.28182112,709.67,708.34,0.28235028]
[1735138360359,0.25929476,709.66,708.34,0.28235028]
[1735138360857,0.25929528,709.65,708.34,0.28235028]
[1735138361051,0.25929528,709.64,708.34,0.28235028]
[1735138361250,0.25929528,709.63,708.34,0.28235028]
[1735138361454,0.25929528,709.62,708.34,0.28235028]
[1735138361755,0.25929528,709.61,708.34,0.28235028]
[1735138361955,0.28182112,709.67,708.34,0.28235028]
[1735138362150,0.25942841,709.66,708.34,0.28235028]
[1735138362566,0.25942841,709.66,708.07,1.03991844]
[1735138363157,0.25942841,709.66,707.3,1.03991844]
[1735138363553,0.25942841,709.66,707.4,0.28272547]
[1735138363754,0.28182112,709.67,707.4,0.28272547]
[1735138363755,0.25948859,709.65,707.4,0.28272547]
[1735138363964,0.25948859,709.64,707.4,0.28272547]
[1735138364259,0.28184098,709.62,707.4,0.28272547]
[1735138364457,0.25948859,709.61,707.4,0.28272547]
[1735138364653,0.2818529,709.59,707.4,0.28272547]
[1735138364853,0.25948859,709.58,707.4,0.28272547]
[1735138365652,0.28186481,709.56,707.4,0.28272547]
[1735138365854,0.25948859,709.55,707.4,0.28272547]
[1735138366053,0.28187276,709.54,707.4,0.28272547]
[1735138366253,0.25948859,709.53,707.4,0.28272547]
[1735138366457,0.2818807,709.52,707.4,0.28272547]
[1735138366757,0.25948859,709.51,707.4,0.28272547]
[1735138366956,0.28188865,709.5,707.4,0.28272547]
[1735138367258,0.25948859,709.49,707.4,0.28272547]
[1735138367658,0.2818966,709.48,707.4,0.28272547]
[1735138367953,0.25948859,709.47,707.4,0.28272547]
[1735138369258,0.25944253,709.46,707.4,0.28272547]
[1735138369459,0.25944253,709.45,707.4,0.28272547]
[1735138369651,0.25944253,709.44,707.4,0.28272547]
[1735138369854,0.25944253,709.43,707.4,0.28272547]
[1735138370057,0.54136297,709.42,707.4,0.28272547]
[1735138370261,0.25944253,709.41,707.4,0.28272547]
[1735138371462,0.54136694,709.41,707.4,0.28272547]
[1735138371660,0.25944253,709.4,707.4,0.28272547]
[1735138372259,0.25944027,709.39,707.4,0.28272547]
[1735138372461,0.25944027,709.38,707.4,0.28272547]
[1735138372664,0.25944027,709.37,707.4,0.28272547]
[1735138372863,0.25944027,709.36,707.4,0.28272547]
[1735138373062,0.25944027,709.35,707.4,0.28272547]
[1735138373364,0.25944027,709.34,707.4,0.28272547]
[1735138373562,0.28192441,709.41,707.4,0.28272547]
[1735138373759,0.2594347,709.4,707.4,0.28272547]
[1735138374865,0.28192441,709.41,707.4,0.28272547]
[1735138375062,0.25944141,709.4,707.4,0.28272547]
[1735138377965,0.25943662,709.39,707.4,0.28272547]
[1735138378166,0.25943662,709.38,707.4,0.28272547]
[1735138378367,0.25943662,709.37,707.4,0.28272547]
[1735138378562,0.25943382,709.36,707.4,0.28272547]
[1735138378765,0.25943382,709.35,707.4,0.28272547]
[1735138378966,0.25943382,709.34,707.4,0.28272547]
[1735138379162,0.25943382,709.33,707.4,0.28272547]
[1735138379462,0.28192441,709.41,707.4,0.28272547]
[1735138379668,0.25943561,709.4,707.4,0.28272547]
[1735138380664,0.25944201,709.39,707.4,0.28272547]
[1735138380861,0.25944201,709.38,707.4,0.28272547]
[1735138381062,0.25944201,709.37,707.4,0.28272547]
[1735138381269,0.25944201,709.36,707.4,0.28272547]
[1735138381468,0.25944201,709.35,707.4,0.28272547]
[1735138381768,0.25944201,709.34,707.4,0.28272547]
[1735138381971,0.25944201,709.33,707.4,0.28272547]
[1735138382261,0.28192441,709.41,707.4,0.28272547]
[1735138382669,0.25943251,709.4,707.4,0.28272547]
[1735138385367,0.25943523,709.39,707.4,0.28272547]
[1735138385565,0.25943523,709.38,707.4,0.28272547]
[1735138385875,0.25943523,709.37,707.48,1.03991844]
[1735138386071,0.25943523,709.36,707.48,1.03991844]
[1735138386272,0.25943523,709.35,707.48,1.03991844]
[1735138386475,0.25943523,709.34,707.5,1.03991844]
[1735138386773,0.25943523,709.33,707.52,0.28267752]
[1735138387074,0.25943523,709.32,707.52,0.28267752]
[1735138387272,0.25943523,709.31,707.52,0.28267752]
[1735138387474,0.25943523,709.3,707.53,1.03991844]
[1735138387674,0.25943523,709.29,707.55,0.28266553]
[1735138387974,0.25943523,709.28,707.55,0.28266553]
[1735138388173,0.28192441,709.41,707.55,0.28266553]
[1735138388369,0.25944332,709.4,707.6,1.03991844]